[Event "Fall GM-B Norm Invitational 2022"]
[Site "Charlotte"]
[Date "2022.11.22"]
[Round "9"]
[White "Ngo, Bach"]
[Black "Woodward, Andy"]
[Result "1-0"]
[ECO "D90"]
[WhiteElo "2275"]
[BlackElo "2447"]
[Annotator "TA"]
[PlyCount "69"]
[EventDate "2022.11.18"]
[EventType "tourn"]
[EventCountry "USA"]
[SourceTitle "playchess.com"]
[Source "ChessBase"]
[SourceQuality "1"]
[TimeControl "5400+30"]

{[%evp 19,69,17,45,4,11,15,12,10,9,0,72,68,70,64,66,71,82,69,160,160,245,235,220,231,516,218,225,224,227,221,220,227,189,122,265,258,252,200,254,248,294,297,630,635,632,608,809,779,885,901,843,781]} 1. d4 {[%emt 0:00:11]} Nf6 {[%emt 0:02:20]} 2. Nf3 {[%emt 0:00:09]} g6 {[%emt 0:00:12]} 3. c4 {[%emt 0:00:17]} Bg7 {[%emt 0:00:12]} 4. Nc3 {[%emt 0:00:08]} d5 {[%emt 0:00:07]} 5. cxd5 {[%emt 0:00:28]} Nxd5 {[%emt 0:00:09]} 6. Na4 {[%emt 0:00:17]} Nb6 {[%emt 0:02:52]} 7. e4 {[%emt 0:00:31]} Bg4 {[%emt 0:03:11]} 8. Be3 {[%emt 0:01:14]} O-O {[%emt 0:02:40]} 9. Be2 {[%emt 0:01:11]} Nxa4 {[%emt 0:13:28]} 10. Qxa4 {[%emt 0:00:29]} c5 {[%emt 0:00:14]} 11. Rd1 {[%emt 0:13:07] has lost popularity (11.dxc5). D85: Exchange Grünfeld: Unusual White 7th moves and lines with 7 Nf3.} Bxf3 {[%emt 0:08:07]} 12. dxc5 {[%emt 0:03:20]} Qc7 {[%emt 0:01:33]} 13. gxf3 {[%emt 0:02:56] The position is equal.} Bxb2 {[%emt 0:06:18]} 14. h4 {[%emt 0:01:11] [#]} Be5 $146 {[%emt 0:03:25]} (14... Nc6 $11 {keeps the balance.}) ({Predecessor:} 14... Nc6 15. Qb3 Be5 16. h5 Rad8 17. hxg6 Rxd1+ 18. Bxd1 hxg6 19. f4 Bxf4 20. Bd4 Nxd4 21. Qh3 Kg7 22. Qh7+ Kf6 23. Qh4+ Bg5 {0-1 (23) Rees,I (2179)-Howell,D (2304) Newport 2004}) 15. h5 $16 {[%emt 0:01:40] Strongly threatening hxg6.} Nc6 {[%emt 0:07:34]} 16. hxg6 {[%emt 0:00:15]} hxg6 {[%emt 0:00:20]} 17. f4 $1 {[%emt 0:05:31] White has more active pieces. The black rooks are badly placed.} Bg7 {[%emt 0:17:15]} 18. f5 {[%emt 0:12:22]} Rfd8 {[%emt 0:07:07]} ({Black should play} 18... gxf5 $1 $14 19. exf5 Rfd8) 19. fxg6 {[%emt 0:01:55]} fxg6 {[%emt 0:01:18]} (19... Qa5+ $16 20. Qxa5 Rxd1+ 21. Kxd1 Nxa5 22. gxf7+ Kxf7) 20. Qc4+ $18 {[%emt 0:06:53]} Kf8 {[%emt 0:00:13]} 21. Qe6 {[%emt 0:00:14] [#] Threatens to win with Bc4.} ({Don't play} 21. Rh7 $6 Ne5 22. Qe6 Qc6) 21... Ne5 {[%emt 0:00:37]} (21... Rxd1+ 22. Bxd1 Qe5 23. Qxg6 Qf6 24. Qxf6+ Bxf6) 22. Rh4 {[%emt 0:08:07]} (22. Rxd8+ $142 Qxd8 23. Rh4) 22... Rxd1+ {[%emt 0:07:20]} 23. Bxd1 {[%emt 0:00:09] Black must now prevent Rf4+. Dancing on a razor blade.} Qa5+ {[%emt 0:00:09]} 24. Kf1 {[%emt 0:04:38]} ({Not} 24. Bd2 Nd3+ 25. Ke2 Qb5 $14) 24... Qa6+ {[%emt 0:01:25]} 25. Qxa6 {[%emt 0:00:09]} bxa6 {[%emt 0:00:03]} 26. Be2 {[%emt 0:05:08]} (26. Bb3 $18) 26... a5 {[%emt 0:01:15] A mistake that costs the game.} (26... Rb8 $16 {might work better.}) 27. f4 {[%emt 0:00:59][%cal Bf2f4,Bf4g5,Bg5g6,Bg6g7][%mdl 32]} Nc6 {[%emt 0:03:41]} 28. e5 {[%emt 0:02:03]} g5 {[%emt 0:02:46]} 29. fxg5 {[%emt 0:00:18]} Bxe5 {[%emt 0:00:10]} 30. g6 {[%emt 0:03:57]} Kg7 $2 {[%emt 0:02:51] [#]} (30... Bg7 31. Bf3 Rc8) 31. Rh7+ {[%emt 0:00:54] White is clearly winning.} Kf6 {[%emt 0:00:04]} 32. Bf3 {[%emt 0:01:15]} Rc8 {[%emt 0:00:20]} 33. g7 {[%emt 0:00:43]} Kf7 {[%emt 0:02:53]} 34. Bh5+ {[%emt 0:00:20] A strong pair of Bishops.} Kf6 {[%emt 0:00:25]} 35. Rh8 {[%emt 0:00:14] Weighted Error Value: White=0.19 (very precise) /Black=0.56} 1-0